Workbook

Sheet 附件3
A1: 附件3：
A2: 2025年江门市本级一般公共预算调整情况表
H3: 单位：万元
A4: 收 入 | E4: 支 出
A5: 项目 | B5: 年初预算数 | C5: 调整额 | D5: 调整后预算数 | E5: 项目 | F5: 年初预算数 | G5: 调整额 | H5: 调整后预算数
A6: 一、一般公共预算收入 | B6: 559,878 | D6: =B6+C6 -> 559,878 | E6: 一、一般公共预算支出 | F6: 765,317 | H6: =F6+G6 -> 765,317
A7: 二、上年结转收入 | B7: 20,000 | D7: =B7+C7 -> 20,000 | E7: 二、转移性支出 | F7: =F8+F9 -> 411,470 | G7: =G8+G9 -> 0 | H7: 411,470
A8: 三、转移性收入 | B8: =B9+B10 -> 374,946 | C8: =C9+C10 -> 0 | D8: 374,946 | E8: （一）上解上级支出 | F8: 146,326 | H8: =F8+G8 -> 146,326
A9: （一）上级补助收入 | B9: 291,705 | D9: =B9+C9 -> 291,705 | E9: （二）补助下级支出 | F9: 265,144 | H9: 265,144
A10: （二）下级上解收入 | B10: 83,241 | D10: =B10+C10 -> 83,241 | E10: 三、预备费 | F10: 9,500 | H10: 9,500
A11: 四、债务转贷收入 | B11: =B12+B13 -> 152,529 | C11: =C12+C13 -> 3,600 | D11: 156,129 | E11: 四、债务转贷支出 | F11: =F12+F13 -> 72,025 | G11: =G12+G13 -> 1,060 | H11: 73,085
A12: （一）再融资债券收入 | B12: 140,529 | C12: 3,600 | D12: =B12+C12 -> 144,129 | E12: （一）再融资债券支出 | F12: 60,025 | G12: =H12-F12 -> 1,060 | H12: 61,085
A13: （二）一般债券收入 | B13: 12,000 | D13: 12,000 | E13: （二）一般债券支出 | F13: 12,000 | H13: =F13+G13 -> 12,000
A14: 五、调入资金 | B14: =SUM(B15:B18) -> 236,702 | C14: =SUM(C15:C18) -> 0 | D14: 236,702 | E14: 五、债务还本支出 | F14: 85,743 | G14: =C12-G12 -> 2,540 | H14: 88,283
A15: （一）调入政府性基金预算资金 | B15: 109,594 | D15: =B15+C15 -> 109,594 | E15: 六、结转下年支出
A16: （二）调入国有资本预算资金 | B16: 4,697 | D16: 4,697
A17: （三）调入其他资金 | B17: 32,412 | D17: 32,412
A18: （四）调入预算稳定调节金 | B18: 90,000 | D18: 90,000
A19: 收入总计 | B19: =B6+B7+B8+B11+B14 -> 1,344,055 | C19: =C6+C7+C8+C11+C14 -> 3,600 | D19: =D6+D7+D8+D11+D14 -> 1,347,655 | E19: 支出总计 | F19: =F6+F7+F10+F11+F14+F15 -> 1,344,055 | G19: =G6+G7+G10+G11+G14+G15 -> 3,600 | H19: =H6+H7+H10+H11+H14+H15 -> 1,347,655
